bitfinex/quotes_SOLUSD_20260217
["timestamp","ask_amount","ask_price","bid_price","bid_amount"]
[1771352233312,7.3043419,84.01,83.973,0.5]
[1771352233508,7.3043419,84.01,83.983,0.5]
[1771352234010,7.3043419,84.01,83.973,0.5]
[1771352234212,7.3043419,84.0,83.974,18.9]
[1771352234394,7.3043419,84.0,83.975,18.9]
[1771352235705,11.90490362,83.999,83.976,18.9]
[1771352235895,7.3043419,83.99,83.952,0.5]
[1771352236089,7.3043419,83.98,83.953,18.9]
[1771352236412,7.3043419,83.96,83.932,0.5]
[1771352236612,7.3043419,83.96,83.93,0.5]
[1771352237096,7.3043419,83.96,83.931,0.5]
[1771352237402,7.3043419,83.97,83.931,0.5]
[1771352237709,41.68204932,83.969,83.933,0.5]
[1771352237901,11.90915695,83.969,83.934,0.5]
[1771352238811,7.3043419,83.96,83.934,19.4]
[1771352239029,7.3043419,83.96,83.924,0.5]
[1771352239309,7.3043419,83.95,83.924,19.4]
[1771352239521,7.3043419,83.95,83.91,7.5043419]
[1771352239522,7.3043419,83.96,83.925,0.5]
[1771352239811,11.91057539,83.959,83.927,0.5]
[1771352240212,29.77310149,83.969,83.927,0.5]
[1771352240391,11.90929878,83.968,83.927,0.5]
[1771352241290,41.66716269,83.999,83.941,0.5]
[1771352241505,7.3043419,83.97,83.941,0.5]
[1771352241822,11.90490362,83.999,83.951,0.5]
[1771352242119,41.66722806,83.999,83.953,0.5]
[1771352242403,41.66722806,83.999,83.955,0.5]
[1771352242404,7.3043419,83.99,83.955,0.5]
[1771352243406,7.3043419,83.99,83.957,0.5]
[1771352243708,11.90632106,83.989,83.957,0.5]
[1771352244010,11.90632106,83.989,83.959,0.5]
[1771352244194,11.90632106,83.989,83.96,0.5]
[1771352245413,11.90632106,83.989,83.962,0.5]
[1771352246217,7.3043419,84.01,83.964,0.5]
[1771352246513,7.3043419,84.01,83.971,0.5]
[1771352247207,7.3043419,84.0,83.971,0.5]
[1771352247913,7.3043419,83.99,83.956,0.5]
[1771352248103,7.3043419,83.99,83.964,18.92]
[1771352248813,7.3043419,83.98,83.948,0.5]
[1771352249017,7.3043419,83.97,83.948,0.5]
[1771352249405,7.3043419,83.97,83.916,4.61729252]
[1771352249406,7.3043419,83.98,83.95,0.5]
[1771352249606,11.90632106,83.989,83.951,19.4]
[1771352249805,11.90632106,83.989,83.952,0.5]
[1771352250318,11.90632106,83.989,83.954,0.5]
[1771352251029,7.3043419,84.01,83.971,0.5]
[1771352251199,7.3043419,84.01,83.973,0.5]
[1771352252515,7.3043419,84.02,83.981,0.5]
[1771352252716,7.3043419,84.0,83.963,0.5]
[1771352253015,52.21754366,84.034,83.971,0.5]
[1771352253016,7.3043419,84.01,83.971,0.5]
[1771352254520,11.90348653,84.009,83.973,0.5]
[1771352255119,7.3043419,84.0,83.973,0.5]
[1771352255511,7.3043419,83.98,83.954,0.5]
[1771352255710,7.3043419,83.98,83.933,0.5]
[1771352255915,7.3043419,83.98,83.944,0.5]
[1771352256207,7.3043419,83.97,83.944,0.5]
[1771352256724,11.90773883,83.979,83.946,0.5]
[1771352259017,11.90773883,83.979,83.948,0.5]
[1771352259423,7.3043419,83.98,83.948,0.5]
[1771352260121,19.21203665,83.98,83.948,0.5]
[1771352261209,7.3043419,83.97,83.941,11.91299064]
[1771352261408,7.3043419,83.97,83.942,0.5]
[1771352261712,7.3043419,83.97,83.944,0.5]
[1771352263932,41.67668736,83.98,83.946,0.5]
[1771352263933,19.21203665,83.98,83.946,0.5]
[1771352264122,7.3043419,83.99,83.951,0.5]
[1771352264324,7.3043419,83.99,83.953,0.5]
[1771352264623,11.90504535,83.998,83.961,0.5]
[1771352264809,11.90504535,83.998,83.963,0.5]
[1771352265409,7.3043419,84.0,83.963,0.5]
[1771352265609,47.595129,84.043,83.963,0.5]
[1771352265610,7.3043419,83.99,83.963,0.5]
[1771352266210,11.90632106,83.989,83.963,0.5]
[1771352267132,7.3043419,83.98,83.962,18.92]
[1771352268131,11.90773883,83.979,83.954,19.44]
[1771352268718,11.90773883,83.979,83.954,0.5]
[1771352269326,7.30865712,83.98,83.956,0.5]
[1771352269735,11.90773883,83.979,83.956,0.5]
[1771352269934,11.90773883,83.979,83.951,18.94]
[1771352270431,11.90773883,83.979,83.952,11.91156851]
[1771352271238,11.90773883,83.979,83.953,0.5]
[1771352271736,11.90773883,83.979,83.955,0.5]
[1771352272632,7.30865712,83.98,83.955,0.5]
[1771352272832,11.90663389,83.987,83.955,0.5]
[1771352273225,7.30865712,83.98,83.955,0.5]
[1771352274035,7.30865712,83.98,83.949,18.94]
[1771352274036,7.30865712,83.99,83.957,0.5]
[1771352274236,7.30865712,83.98,83.957,0.5]
[1771352274420,11.90632106,83.989,83.957,0.5]
[1771352276441,7.30865712,83.98,83.957,0.5]
[1771352276644,11.90632106,83.989,83.959,0.5]
[1771352277227,7.30865712,83.99,83.959,0.5]
[1771352277920,14.54,84.0,83.958,11.91071726]
[1771352277921,7.30865712,84.0,83.961,0.5]
[1771352278125,7.30865712,84.0,83.963,0.5]
[1771352278342,7.30865712,84.0,83.965,0.5]
[1771352278643,7.30865712,84.01,83.971,0.5]
[1771352278829,7.30865712,84.01,83.973,0.5]
[1771352279035,7.30865712,84.02,83.981,0.5]
[1771352279750,7.30865712,84.01,83.981,0.5]
[1771352279942,2.45391375,84.01,83.981,0.5]
[1771352280539,11.90490362,83.999,83.981,0.5]
[1771352280850,11.90490362,83.999,83.982,18.94]
[1771352281446,2.45391375,83.99,83.968,19.44]
[1771352281639,2.45391375,83.98,83.961,0.5]
[1771352282038,2.45391375,83.97,83.952,0.5]
[1771352282232,2.45391375,83.97,83.953,11.91142663]
[1771352282432,2.45391375,83.97,83.954,0.5]
[1771352283429,2.45391375,83.97,83.956,0.5]
[1771352283637,2.45391375,83.98,83.956,0.5]
[1771352286359,2.45391375,84.0,83.96,2.45391375]
[1771352286542,2.45391375,84.0,83.962,0.5]
[1771352287434,2.45391375,83.99,83.963,18.96]
[1771352287652,2.45391375,83.99,83.963,19.46]
[1771352287850,2.45391375,83.99,83.964,0.5]
[1771352288047,2.45391375,84.0,83.964,0.5]
[1771352288246,2.45391375,84.0,83.971,0.5]
[1771352288561,11.90391162,84.006,83.973,0.5]
[1771352289058,2.45391375,84.01,83.973,0.385389]
[1771352289536,11.90348653,84.009,83.973,0.385389]
[1771352290055,2.45391375,84.0,83.973,0.385389]
[1771352291258,2.45391375,84.0,83.975,0.47273485]
[1771352293151,2.45391375,84.0,83.976,11.90816423]
[1771352293356,11.90362051,84.009,83.977,0.47273485]
[1771352293736,2.45391375,84.01,83.977,0.47273485]
[1771352294260,2.45391375,84.02,83.981,0.47273485]
[1771352294642,2.45391375,84.02,83.991,0.49264979]
[1771352295044,2.45391375,84.03,83.991,0.49264979]
[1771352295263,2.45391375,84.03,83.995,0.49264979]
[1771352295264,2.45391375,84.02,83.995,0.49264979]
[1771352297160,11.90090854,84.028,83.995,0.49264979]
[1771352297358,2.45391375,84.03,83.997,0.49264979]
[1771352297562,2.45391375,84.04,84.001,0.49264979]
[1771352298756,14.35312564,84.04,84.003,0.49264979]
[1771352299552,14.35312564,84.04,84.004,11.90419503]
[1771352299768,2.45391375,84.05,84.011,0.49264979]
[1771352299947,2.45391375,84.06,84.021,0.49264979]
[1771352300143,2.45391375,84.04,84.011,0.49264979]
[1771352300368,2.45391375,84.03,84.013,0.49264979]
[1771352300660,2.45391375,84.04,84.013,0.49264979]
[1771352300867,2.45391375,84.05,84.013,0.49264979]
[1771352301441,2.45391375,84.06,84.021,0.49264979]
[1771352301961,11.89640609,84.059,84.023,0.49264979]
[1771352302865,11.89499101,84.069,84.031,0.49264979]
[1771352303165,2.45391375,84.07,84.031,0.49264979]
[1771352303366,2.45391375,84.07,84.033,0.49264979]
[1771352304760,2.45391375,84.07,84.035,0.49264979]
[1771352306040,29.84682709,84.084,84.041,0.49264979]
[1771352306246,2.45391375,84.08,84.041,0.49264979]
[1771352306752,2.45391375,84.07,84.043,0.49264979]
[1771352306950,2.56852475,84.07,84.043,0.49264979]
[1771352307150,2.45391375,84.06,84.034,0.49264979]
[1771352307368,0.114611,84.049,84.022,18.96]
[1771352307665,2.45391375,84.05,84.023,0.49264979]
[1771352308365,2.45391375,84.05,84.024,11.90136151]
[1771352308668,2.45391375,84.05,84.025,0.49264979]
[1771352308860,14.35168655,84.05,84.025,0.49264979]
[1771352312472,14.35168655,84.05,84.026,11.90107823]
[1771352313257,14.35168655,84.05,84.026,12.39372802]
[1771352313769,14.35168655,84.05,84.026,0.49264979]
[1771352315168,0.114611,84.039,84.011,0.49264979]
[1771352315351,2.45391375,84.02,84.008,18.98]
[1771352315549,2.45391375,84.03,84.008,18.98]
[1771352315776,2.56852475,84.02,84.008,18.98]
[1771352316081,2.56852475,84.02,83.944,102.8]
[1771352316082,2.45391375,84.02,83.973,0.5]
[1771352316378,2.45391375,83.98,83.964,0.5]
[1771352316772,2.45391375,83.98,83.954,0.5]
[1771352317150,11.90773883,83.979,83.954,0.5]
[1771352317400,2.45391375,83.97,83.953,18.98]
[1771352317694,2.45391375,83.97,83.93,32.2404106]
[1771352317695,2.45391375,83.97,83.945,0.5]
[1771352317870,7.31085968,83.97,83.945,0.5]
[1771352318182,7.31085968,83.96,83.945,0.5]
[1771352318390,7.31085968,83.97,83.945,0.5]
[1771352318682,7.31085968,83.96,83.945,0.5]
[1771352319187,7.31085968,83.96,83.94,11.91325895]
[1771352319584,7.31085968,83.96,83.941,0.5]
[1771352320891,11.91057539,83.959,83.941,0.5]
[1771352321193,7.31085968,83.95,83.931,0.5]
[1771352321396,11.91199418,83.949,83.912,0.5]
[1771352321581,7.31085968,83.94,83.914,0.5]
[1771352321889,7.31085968,83.96,83.921,0.5]
[1771352323387,11.91057539,83.959,83.922,11.9158266]
[1771352323587,11.91057539,83.959,83.924,0.5]
[1771352324587,11.91057539,83.959,83.926,0.5]
[1771352324881,11.91057539,83.959,83.927,19.0]
[1771352325085,11.91057539,83.959,83.928,0.5]
[1771352325288,11.91057539,83.959,83.93,0.5]
[1771352325689,7.31085968,83.95,83.93,0.5]
[1771352326274,7.31085968,83.96,83.932,0.5]
[1771352326690,7.31085968,83.95,83.926,19.02]
[1771352326906,7.31085968,83.94,83.926,19.02]
[1771352327277,7.31085968,83.94,83.922,0.5]
[1771352327878,7.31568717,83.94,83.922,0.5]
[1771352328095,7.31568717,83.94,83.916,19.02]
[1771352328390,7.31568717,83.94,83.917,0.5]
[1771352329370,7.31568717,83.93,83.91,0.2]
[1771352329685,7.31568717,83.92,83.91,0.2]
[1771352330481,7.31568717,83.92,83.9,0.2]
[1771352330678,7.31568717,83.91,83.881,0.5]
[1771352330900,7.31568717,83.9,83.881,0.5]
[1771352332191,11.91909319,83.899,83.881,0.5]
[1771352332589,11.91909319,83.899,83.88,0.2]
[1771352332993,7.31568717,83.9,83.881,0.5]
[1771352335585,7.31568717,83.91,83.883,0.5]
[1771352336599,7.31568717,83.91,83.88,0.2]
[1771352336600,7.31568717,83.91,83.885,0.5]
[1771352336793,7.31568717,83.92,83.885,0.5]
[1771352336995,7.31568717,83.91,83.885,0.5]
[1771352337983,7.31568717,83.9,83.885,0.5]
[1771352338181,7.31568717,83.9,83.881,0.5]
[1771352338386,14.58,83.926,83.882,0.5]
[1771352338387,7.31568717,83.91,83.882,0.5]
[1771352338884,7.31568717,83.91,83.884,0.5]
[1771352340000,2.45983847,83.91,83.884,0.5]
[1771352340699,2.45983847,83.97,83.891,0.5]
[1771352340896,2.45983847,83.94,83.903,0.5]
[1771352341307,14.37315379,83.94,83.911,0.5]
[1771352342194,2.45983847,83.94,83.911,0.5]
[1771352343390,2.45983847,83.94,83.913,0.5]
[1771352345000,2.45983847,83.96,83.921,0.5]
[1771352345218,2.45983847,83.96,83.923,0.5]
[1771352345219,11.91057539,83.959,83.923,0.5]
[1771352345387,2.45983847,83.95,83.923,0.5]
[1771352345582,2.45983847,83.95,83.922,19.06]
[1771352345583,2.45983847,83.95,83.925,0.5]
[1771352346122,2.45983847,83.93,83.916,0.5]
[1771352346607,0.49378746,83.929,83.894,19.06]
[1771352346919,2.45983847,83.92,83.894,19.06]
[1771352347803,2.45983847,83.9,83.88,0.2]
[1771352348001,7.32285443,83.9,83.88,0.2]
[1771352348216,7.32285443,83.9,83.881,11.92165091]
[1771352348416,14.58,83.929,83.881,11.92165091]
[1771352348417,7.32285443,83.92,83.882,0.47698487]
[1771352348635,7.32285443,83.92,83.884,0.47698487]
[1771352349228,7.32285443,83.91,83.884,0.47698487]
[1771352349618,7.32285443,83.91,83.886,0.47698487]
[1771352350224,19.24051455,83.91,83.886,0.47698487]
[1771352351031,7.32285443,83.9,83.88,0.2]
[1771352351619,0.49378746,83.889,83.87,0.2]
[1771352351830,7.32285443,83.87,83.86,0.2]
[1771352352047,7.32285443,83.87,83.84,30.01868432]
[1771352352048,7.32285443,83.86,83.84,0.67698487]
[1771352352332,7.32285443,83.85,83.825,0.47698487]
[1771352352535,7.32285443,83.85,83.827,0.5]
[1771352352723,7.32285443,83.84,83.827,0.5]
[1771352352928,7.32285443,83.85,83.823,0.5]
[1771352353123,7.32285443,83.86,83.823,0.5]
[1771352353318,7.32285443,83.85,83.825,0.5]
[1771352353732,7.32285443,83.86,83.827,0.5]
[1771352355018,7.32285443,83.86,83.831,0.5]
[1771352355734,11.92477849,83.859,83.831,0.5]
[1771352355935,7.32285443,83.86,83.831,0.5]
[1771352356153,7.32285443,83.86,83.833,0.5]
[1771352356915,7.32285443,83.88,83.841,0.5]
[1771352357115,7.32285443,83.89,83.851,0.5]
[1771352357320,7.32285443,83.9,83.861,0.5]
[1771352357736,7.32285443,83.89,83.861,0.5]
[1771352357944,11.92051401,83.889,83.861,0.5]
[1771352358441,7.32285443,83.88,83.858,19.06]
[1771352358659,7.32285443,83.88,83.858,30.98487674]
[1771352358842,7.32285443,83.88,83.859,0.5]
[1771352359216,7.32285443,83.89,83.859,0.5]
[1771352359416,7.32285443,83.89,83.861,0.5]
[1771352360221,7.32285443,83.89,83.862,11.92435191]
[1771352360418,7.32285443,83.9,83.863,0.5]
[1771352360618,7.32285443,83.91,83.871,0.5]
[1771352360923,7.32285443,83.91,83.873,0.5]
[1771352362015,7.32285443,83.92,83.881,0.5]
[1771352362236,53.8577425,83.979,83.891,0.5]
[1771352362237,7.32285443,83.93,83.891,0.5]
[1771352362419,11.91483277,83.929,83.893,0.5]
[1771352362620,7.32285443,83.92,83.893,0.5]
[1771352363540,7.32285443,83.92,83.881,29.8040852]
[1771352363541,7.32285443,83.9,83.831,0.5]
[1771352363738,7.32285443,83.9,83.83,59.64451866]
[1771352363739,7.32285443,83.89,83.851,0.5]
[1771352364039,7.32285443,83.91,83.871,0.5]
[1771352365030,7.32285443,83.92,83.881,0.5]
[1771352365444,11.91625257,83.919,83.881,0.5]
[1771352365632,7.32285443,83.92,83.881,0.5]
[1771352367050,7.32285443,83.93,83.891,0.5]
[1771352369048,11.91483277,83.929,83.891,0.5]
[1771352369226,11.91483277,83.929,83.893,0.5]
[1771352370833,7.32285443,83.92,83.892,11.92008773]
[1771352371029,7.32285443,83.92,83.887,0.5]
[1771352371233,7.32285443,83.91,83.887,0.5]
[1771352371732,11.91707855,83.914,83.887,0.5]
[1771352371933,11.91497474,83.928,83.891,0.5]
[1771352373131,11.91497474,83.928,83.888,11.92065611]
[1771352373132,7.32285443,83.92,83.892,11.92008773]
[1771352373335,7.32285443,83.92,83.893,0.5]
[1771352374547,7.32285443,83.92,83.886,0.5]
[1771352374969,11.91497474,83.928,83.891,0.5]
[1771352375134,7.32285443,83.94,83.902,11.91866701]
[1771352375340,7.32285443,83.93,83.903,0.5]
[1771352375554,7.32285443,83.92,83.895,0.5]
[1771352376140,7.32285443,83.93,83.895,0.5]
[1771352378446,11.91408161,83.935,83.897,0.5]
[1771352378749,11.91292467,83.943,83.911,0.5]
[1771352379158,7.32285443,83.94,83.911,0.5]
[1771352380647,7.32285443,83.93,83.903,12.41850042]
[1771352381046,7.32285443,83.93,83.904,0.5]
[1771352382759,11.91341331,83.939,83.906,0.5]
[1771352383846,11.91341331,83.939,83.908,0.5]
[1771352384065,7.32285443,83.93,83.908,0.5]
[1771352384766,11.91341331,83.939,83.908,0.5]
[1771352385571,7.32285443,83.94,83.908,0.5]
[1771352385878,7.32285443,83.95,83.913,0.5]
[1771352386578,7.32285443,83.94,83.909,19.06]
[1771352386778,7.32285443,83.94,83.909,0.5]
[1771352387866,11.91234635,83.947,83.911,0.5]
[1771352388651,7.32285443,83.94,83.911,0.5]
[1771352389872,7.31551395,83.94,83.912,11.91724663]
[1771352390055,7.31551395,83.94,83.913,0.5]
[1771352390369,7.31551395,83.95,83.913,0.5]
[1771352390550,7.31551395,83.96,83.921,0.5]
[1771352390751,7.31551395,83.96,83.923,0.5]
[1771352391150,19.22596718,83.96,83.923,0.5]
[1771352392852,7.31551395,83.95,83.925,0.5]
[1771352394773,19.22596718,83.96,83.927,0.5]
[1771352395454,7.31551395,83.95,83.927,0.5]
[1771352395664,7.31551395,83.95,83.927,19.6]
[1771352395870,2.45741199,83.95,83.928,0.5]
[1771352397863,2.45741199,83.95,83.929,11.91483277]
[1771352398180,2.45741199,83.95,83.929,12.41483277]
[1771352398883,109.72749797,83.991,83.94,2.45741199]
[1771352399064,11.90632106,83.989,83.951,0.5]
[1771352399956,0.1,83.99,83.961,0.5]
[1771352400366,11.90632106,83.989,83.961,19.08]
[1771352400574,0.1,83.99,83.962,0.5]
[1771352400775,11.90632106,83.989,83.963,11.91000797]
[1771352401083,7.40726065,83.99,83.964,0.5]
[1771352401261,0.1,83.99,83.964,0.5]
[1771352402190,14.72,84.011,83.963,11.91000797]
[1771352402191,7.40726065,84.02,83.981,0.5]
[1771352402493,0.1,84.02,83.991,0.5]
[1771352402685,7.40726065,84.02,83.991,0.5]
[1771352402977,7.40726065,84.02,83.992,11.90589579]
[1771352403169,7.40726065,84.02,83.992,12.40589579]
[1771352403370,11.90206976,84.019,83.993,0.5]
[1771352403577,11.90206976,84.019,83.987,19.08]
[1771352403762,7.40726065,84.01,83.987,19.08]
[1771352403963,7.40726065,84.01,83.987,0.5]
[1771352404185,0.1,84.01,83.987,0.5]
[1771352405373,0.1,84.01,83.989,0.5]
[1771352405882,0.1,84.02,83.991,0.46403892]
[1771352406983,7.40726065,84.02,83.991,0.46403892]
[1771352407482,11.90206976,84.019,83.991,12.36997447]
[1771352407789,0.1,84.058,84.011,0.46403892]
[1771352407969,7.40726065,84.05,84.011,0.46403892]
[1771352408290,7.30726065,84.03,84.004,19.08]
[1771352408484,7.30726065,84.03,84.004,19.54403892]
[1771352408663,7.30726065,84.03,84.005,0.46403892]
[1771352408863,0.1,84.039,84.005,0.46403892]
[1771352409280,7.30726065,84.04,84.005,0.46403892]
[1771352409599,7.30726065,84.04,84.0,7.30726065]
[1771352409600,11.8978215,84.049,84.011,0.46403892]
[1771352409801,7.30726065,84.04,84.013,0.46403892]
[1771352410277,0.1,84.029,84.004,11.90414508]
[1771352410592,7.30726065,84.04,84.005,0.46403892]
[1771352410886,11.89432266,84.074,84.031,0.46403892]
[1771352411094,0.1,84.078,84.041,0.46403892]
[1771352411271,0.1,84.069,84.041,0.46403892]
[1771352411667,0.1,84.069,84.029,19.08]
[1771352411668,11.99357627,84.079,84.043,0.46403892]
[1771352412087,7.30726065,84.06,84.033,0.46403892]
[1771352412302,7.30726065,84.05,84.027,0.46403892]
[1771352412589,7.30726065,84.06,84.028,0.46403892]
[1771352412992,7.30726065,84.07,84.031,0.46403892]
[1771352413894,11.89499101,84.069,84.033,0.46403892]
[1771352414289,0.1,84.1,84.061,0.46403892]
[1771352414490,0.1,84.1,84.07,7.78359968]
[1771352414690,0.1,84.1,84.071,0.47633903]
[1771352414893,0.2,84.109,84.058,0.47633903]
[1771352415087,7.30726065,84.1,84.071,0.47633903]
[1771352415488,0.1,84.11,84.071,0.47633903]
[1771352415489,7.40726065,84.11,84.071,0.47633903]
[1771352415698,0.1,84.11,84.081,0.47633903]
[1771352415998,0.1,84.11,84.083,0.47633903]
[1771352417898,0.2,84.139,84.101,0.47633903]
[1771352418077,11.88523615,84.138,84.101,0.47633903]
[1771352418276,7.30726065,84.13,84.101,0.47633903]
[1771352419097,11.88368251,84.149,84.111,0.47633903]
[1771352419490,0.1,84.15,84.111,0.47633903]
[1771352419678,7.30726065,84.18,84.141,0.17714898]
[1771352419876,7.30726065,84.2,84.131,13.14]
[1771352419877,7.30726065,84.17,84.131,13.14]
[1771352420175,7.30726065,84.17,84.13,26.36726065]
[1771352420378,0.47396291,84.159,84.128,19.06]
[1771352420580,0.47396291,84.159,84.13,7.30726065]
[1771352421278,7.30726065,84.16,84.13,7.30726065]
[1771352421486,0.47396291,84.169,84.13,7.30726065]
[1771352421689,0.47396291,84.178,84.14,7.30726065]
[1771352421887,7.30726065,84.17,84.141,0.47633903]
[1771352422198,7.30726065,84.17,84.142,11.88467115]
[1771352422491,12.35368895,84.178,84.143,0.47633903]
[1771352422996,0.47396291,84.188,84.151,0.47633903]
[1771352423176,0.47396291,84.197,84.161,0.47633903]
[1771352423378,12.35072957,84.198,84.171,0.47633903]
[1771352423780,7.30726065,84.2,84.171,0.47633903]
[1771352423978,47.46563876,84.272,84.146,4.61729252]
[1771352423979,0.47396291,84.259,84.191,0.47633903]
[1771352424307,0.5,84.349,84.223,4.61729252]
[1771352424486,7.30726065,84.35,84.223,4.61729252]
[1771352424487,7.30726065,84.31,84.27,7.30726065]
[1771352424799,7.30726065,84.31,84.25,7.30726065]
[1771352424800,13.14,84.343,84.271,13.14]
[1771352425020,14.64,84.345,84.272,13.14]
[1771352425305,14.64,84.345,84.2,7.30726065]
[1771352425306,7.30726065,84.31,84.27,7.30726065]
[1771352425495,243.03497329,84.35,84.257,0.47633903]
[1771352425681,4.61729252,84.346,84.26,7.30726065]
[1771352425876,7.30726065,84.29,84.258,13.12]
[1771352426304,7.30726065,84.28,84.256,19.0]
[1771352426598,0.47396291,84.321,84.271,0.47633903]
[1771352426804,7.78122356,84.33,84.29,7.78359968]
[1771352426993,0.47396291,84.319,84.27,7.30726065]
[1771352427197,0.47396291,84.299,84.269,18.98]
[1771352427723,0.47396291,84.299,84.251,41.5425336]
[1771352427724,0.47396291,84.289,84.251,30.84929531]
[1771352427997,0.47396291,84.279,84.251,11.86929531]
[1771352428177,7.30726065,84.3,84.27,7.30726065]
[1771352428379,0.47396291,84.299,84.261,0.47633903]
[1771352428576,0.47396291,84.291,84.258,18.98]
[1771352428903,0.47396291,84.302,84.27,7.30726065]
[1771352429102,0.47396291,84.309,84.27,7.30726065]
[1771352429279,54.72875299,84.35,84.291,0.47633903]
[1771352429280,0.47396291,84.329,84.291,0.47633903]
[1771352429485,0.47396291,84.319,84.29,7.30726065]
[1771352429698,0.47396291,84.319,84.281,18.98]
[1771352429881,7.30726065,84.35,84.26,7.30726065]
[1771352429882,0.47396291,84.299,84.26,7.30726065]
[1771352430083,0.47396291,84.289,84.252,11.86915444]
[1771352430599,0.47396291,84.289,84.253,0.47633903]
[1771352430806,0.47396291,84.288,84.253,0.47633903]
[1771352430999,7.30726065,84.3,84.261,0.47633903]
[1771352431212,0.47396291,84.321,84.29,7.30726065]
[1771352431500,7.78122356,84.32,84.281,0.47633903]
[1771352431702,0.47396291,84.309,84.272,18.98]
[1771352431913,0.47396291,84.337,84.273,0.47633903]
[1771352432099,0.47396291,84.348,84.31,7.30726065]
[1771352432607,0.47396291,84.329,84.3,7.30726065]
[1771352432806,0.47396291,84.329,84.291,11.86366278]
[1771352433011,0.47396291,84.329,84.276,29.66419305]
[1771352433012,0.47396291,84.319,84.28,7.30726065]
[1771352433216,7.30726065,84.3,84.27,7.30726065]
[1771352433509,0.47396291,84.319,84.28,7.30726065]
[1771352433739,0.47396291,84.309,84.271,12.34281741]
[1771352433888,0.47396291,84.309,84.27,7.30726065]
[1771352433889,7.78122356,84.3,84.27,7.30726065]
[1771352434088,7.78122356,84.3,84.264,30.82738396]
[1771352434089,7.78122356,84.3,84.266,0.47633903]
[1771352434310,7.78122356,84.3,84.27,7.30726065]
[1771352434727,0.47396291,84.326,84.28,7.78359968]
[1771352434891,7.30726065,84.31,84.28,7.78359968]
[1771352435091,7.30726065,84.3,84.27,7.30726065]
[1771352435513,0.47396291,84.289,84.264,18.94]
[1771352435693,0.47396291,84.289,84.25,7.30726065]
[1771352435894,0.47396291,84.289,84.26,7.30726065]
[1771352436193,0.47396291,84.312,84.28,7.30726065]
[1771352436496,47.41781176,84.357,84.251,100.88901019]
[1771352436497,0.47396291,84.34,84.3,7.30726065]
[1771352436702,7.30726065,84.33,84.301,11.86225548]
[1771352437021,19.16406206,84.34,84.302,0.47633903]
[1771352437316,7.30726065,84.34,84.302,0.47633903]
[1771352437512,7.30726065,84.32,84.297,18.94]
[1771352437829,7.78122356,84.32,84.282,12.34114814]
[1771352438119,0.47396291,84.32,84.29,7.30726065]
[1771352438416,0.47396291,84.329,84.291,0.47633903]
[1771352438730,11.85845745,84.328,84.292,12.33986107]
[1771352438923,0.47396291,84.329,84.3,7.30726065]
[1771352439217,11.8571687,84.338,84.301,0.47633903]
[1771352439631,0.47396291,84.337,84.301,0.47633903]
[1771352440320,7.30726065,84.32,84.29,7.30726065]
[1771352440497,0.47396291,84.319,84.285,18.94]
[1771352440700,0.47396291,84.319,84.29,7.30726065]
[1771352440917,0.47396291,84.319,84.285,18.94]
[1771352440918,0.47396291,84.318,84.285,18.94]
[1771352441109,7.78122356,84.31,84.274,11.86599261]
[1771352441415,0.47396291,84.299,84.26,7.30726065]
[1771352441622,7.30726065,84.29,84.26,19.17528818]
[1771352441818,7.30726065,84.28,84.246,0.47633903]
[1771352442004,0.47396291,84.28,84.246,0.47633903]
[1771352442213,7.78122356,84.28,84.247,11.86985886]
[1771352442406,0.47396291,84.279,84.246,0.47633903]
[1771352442725,0.47396291,84.279,84.241,0.47633903]
[1771352443015,11.86549277,84.278,84.243,0.47633903]
[1771352443223,12.33945568,84.278,84.243,0.47633903]
[1771352443518,7.30726065,84.28,84.25,0.47633903]
[1771352443733,7.78122356,84.28,84.242,11.87056337]
[1771352443913,7.30726065,84.27,84.24,7.78359968]
[1771352444112,7.30726065,84.3,84.261,0.47633903]
[1771352444424,0.45957086,84.299,84.27,7.30726065]
[1771352444614,0.45957086,84.299,84.261,0.47633903]
[1771352444924,0.45957086,84.297,84.262,11.86774584]
[1771352445225,11.86253692,84.299,84.27,7.30726065]
[1771352445916,0.45957086,84.298,84.262,11.86774584]